fUSD/lending_fUSD_20251110
["ID","MTS","AMOUNT","RATE_DAILY","PERIOD"]
[393565541,1762803012777,-287.0233663,0.00015,2]
[393565542,1762803012872,-10000.01,0.00015,2]
[393565543,1762803012973,-10000.01,0.00015,2]
[393565544,1762803013111,-10000.01,0.00015,2]
[393565545,1762803013253,-10000.01,0.00015,2]
[393565546,1762803014246,-355.05,0.00015,2]
[393565547,1762803015123,-10000.01,0.00015,2]
[393565548,1762803016408,-288.08448633,0.00015,2]
[393565549,1762803017999,-302.10948437,0.000149,2]
[393565550,1762803018037,-9395.79103126,0.00015,2]
[393565551,1762803018814,-10000.01,0.00015,2]
[393565552,1762803018949,-10000.01,0.00015,2]
[393565553,1762803019055,-10000.01,0.00015,2]
[393565554,1762803019164,-10000.01,0.00015,2]
[393565555,1762803019308,-10000.01,0.00015,2]
[393565556,1762803019495,-10000.01,0.00015,2]
[393565557,1762803019598,-10000.01,0.00015,2]
[393565558,1762803019721,-10000.01,0.00015,2]
[393565559,1762803024028,-10000.01,0.00015,2]
[393565560,1762803024141,-10000.01,0.00015,2]
[393565561,1762803024278,-10000.01,0.00015,2]
[393565562,1762803024406,-10000.01,0.00015,2]
[393565563,1762803024540,-10000.01,0.00015,2]
[393565564,1762803024679,-10000.01,0.00015,2]
[393565565,1762803024803,-10000.01,0.00015,2]
[393565566,1762803024911,-10000.01,0.00015,2]
[393565567,1762803025032,-10000.01,0.00015,2]
[393565587,1762803031710,-653.08711655,0.00015,2]
[393565588,1762803031767,-1250.37870014,0.00015,2]
[393565589,1762803031778,-517.52587944,0.00015,2]
[393565590,1762803031790,-1020.54048194,0.00015,2]
[393565591,1762803031800,-922.13592424,0.00015,2]
[393565592,1762803031823,-6641.87520505,0.00015,2]
[393565593,1762803031834,-10511.05724366,0.00015,2]
[393565594,1762803031879,-150340.5876439,0.00015,2]
[393565595,1762803031934,-452.69433313,0.00015,2]
[393565596,1762803031945,-1032.20960923,0.00015,2]
[393565681,1762803032836,-216.1585042,0.00015,2]
[393565705,1762803033108,-10000.01,0.00015,2]
[393565706,1762803034039,-221.072956,0.00015,2]
[393565707,1762803034165,-221.072956,0.00015,2]
[393565708,1762803034271,-151.0,0.00015,2]
[393565709,1762803034375,-221.072956,0.00015,2]
[393565710,1762803034491,-221.072956,0.00015,2]
[393565711,1762803034592,-197.48845172,0.00015,2]
[393565712,1762803036173,-283.15824942,0.00015,2]
[393565713,1762803037674,-1510.0,0.00015,2]
[393565714,1762803037685,-1077.30901779,0.00015,2]
[393565715,1762803037696,-297.18518212,0.00015,2]
[393565716,1762803037718,-11481.55385423,0.00015,2]
[393565717,1762803037730,-36337.21988587,0.00015,2]
[393565718,1762803037741,-34838.12375623,0.00015,2]
[393565719,1762803037753,-1471.0953936,0.00015,2]
[393565720,1762803037843,-971.60856542,0.00015,2]
[393565812,1762803039673,-300.0,0.00015,2]
[393565813,1762803039699,-770.00042868,0.00015,2]
[393565814,1762803039711,-407.10577231,0.00015,2]
[393565815,1762803039808,-1059.2103266,0.00015,2]
[393565823,1762803040498,-403895.22186396,0.00015,2]
[393565824,1762803040509,-344922.99268795,0.00015,3]
[393565825,1762803040520,-414.97741736,0.00015237,2]
[393565826,1762803040530,-421.78523819,0.00015237,2]
[393565827,1762803040539,-414.97741736,0.00015574,2]
[393565828,1762803040549,-421.78523819,0.00015574,2]
[393565829,1762803040559,-297.96515879,0.00015807,2]
[393565830,1762803040568,-414.97741736,0.00015912,2]
[393565831,1762803040578,-421.78523819,0.00015912,2]
[393565832,1762803040587,-255.0,0.00016124,2]
[393565833,1762803040597,-414.97741736,0.00016249,2]
[393565834,1762803040608,-421.78523819,0.00016249,2]
[393565835,1762803040618,-2566.71913452,0.00016499,2]
[393565836,1762803040627,-250.0,0.00016499,2]
[393565837,1762803040637,-255.52244811,0.000165,2]
[393565838,1762803040648,-195.0,0.000165,2]
[393565839,1762803040658,-2751.0,0.00016539,2]
[393565840,1762803040668,-414.97741736,0.00016586,2]
[393565841,1762803040679,-421.78523819,0.00016586,2]
[393565842,1762803040688,-414.97741736,0.00016923,2]
[393565843,1762803040698,-421.78523819,0.00016923,2]
[393565844,1762803040709,-166.66,0.00017172,2]
[393565845,1762803040718,-414.97741736,0.00017261,2]
[393565846,1762803040728,-421.78523819,0.00017261,2]
[393565847,1762803040737,-1300.0,0.000173,6]
[393565848,1762803040747,-2000.0,0.000174,6]
[393565849,1762803040757,-2700.0,0.000175,6]
[393565850,1762803040768,-2500.0,0.00017573,2]
[393565851,1762803040778,-414.97741736,0.00017598,2]
[393565852,1762803040789,-421.78523819,0.00017598,2]
[393565853,1762803040799,-3400.0,0.000176,6]
[393565854,1762803040809,-500.0,0.00017673,2]
[393565855,1762803040819,-264973.12438539,0.00017673,2]
[393565856,1762803042769,-353.25578801,0.00014999,2]
[393565857,1762803042778,-8814.58379798,0.00017673,2]
[393565858,1762803042824,-12207.6437022,0.00017673,2]
[393565859,1762803042931,-66657.64910273,0.00017673,2]
[393565860,1762803042943,-25186.3396482,0.00017673,2]
[393565861,1762803042987,-1079.152199,0.00017673,2]
[393565870,1762803045856,-10231.0,0.00017673,2]
[393565871,1762803045868,-809.68401322,0.00017673,2]
[393565872,1762803045907,-1058.3,0.00017673,2]
[393565873,1762803045919,-259.1868346,0.00017673,2]
[393565874,1762803045930,-28051.46749945,0.00017673,2]
[393565875,1762803045940,-371.27041289,0.00017674,2]
[393565876,1762803045949,-11539.54453665,0.000177,2]
[393565877,1762803045962,-1162.37324873,0.000177,2]
[393565878,1762803046242,-19851.92401462,0.000177,2]
[393565879,1762803046253,-591.1676,0.000177,2]
[393565880,1762803046262,-600.0,0.000177,6]
[393565881,1762803046272,-371.27041289,0.00017712,2]
[393565882,1762803046282,-166.66,0.00017739,2]
[393565883,1762803046291,-371.27041289,0.00017749,2]
[393565884,1762803046300,-166.66,0.00017784,2]
[393565885,1762803046310,-371.27041289,0.00017786,2]
[393565886,1762803046320,-600.0,0.000178,6]
[393565887,1762803046333,-168.0,0.00017801,2]
[393565888,1762803046342,-371.27041289,0.00017823,2]
[393565889,1762803046356,-168.0,0.00017824,2]
[393565890,1762803046366,-168.0,0.00017825,2]
[393565891,1762803046376,-371.27041289,0.00017861,2]
[393565892,1762803046386,-168.0,0.00017889,2]
[393565893,1762803046395,-371.27041289,0.00017898,2]
[393565894,1762803046405,-168.0,0.00017899,2]
[393565895,1762803046415,-600.0,0.000179,6]
[393565896,1762803046425,-168.0,0.00017919,2]
[393565897,1762803046434,-371.27041289,0.00017935,2]
[393565898,1762803046444,-256.43708934,0.00017935,2]
[393565899,1762803046453,-414.97741736,0.00017935,2]
[393565900,1762803046463,-421.78523819,0.00017935,2]
[393565901,1762803046472,-513.71,0.00017936,2]
[393565902,1762803046482,-500.0,0.00017973,2]
[393565903,1762803046492,-501.17569297,0.00017973,2]
[393565904,1762803046502,-151.0,0.00017989,2]
[393565905,1762803046511,-151.0,0.00017989,2]
[393565906,1762803046522,-151.0,0.00017989,2]
[393565907,1762803046532,-151.0,0.00017989,2]
[393565908,1762803046541,-151.0,0.00017989,2]
[393565909,1762803046554,-151.0,0.00017989,2]
[393565910,1762803046564,-151.0,0.00017989,2]
[393565911,1762803046573,-151.0,0.00017989,2]
[393565912,1762803046583,-151.0,0.00017989,2]
[393565913,1762803046592,-151.0,0.00017989,2]
[393565914,1762803046601,-151.0,0.00017989,2]
[393565915,1762803046611,-151.0,0.00017989,2]
[393565916,1762803046620,-151.0,0.00017989,2]
[393565917,1762803046630,-151.0,0.00017989,2]
[393565918,1762803046639,-151.0,0.00017989,2]
[393565919,1762803046649,-151.0,0.00017989,2]
[393565920,1762803046658,-151.0,0.00017989,2]
[393565921,1762803046668,-151.0,0.00017989,2]
[393565923,1762803046678,-151.0,0.00017989,2]
[393565925,1762803046687,-151.0,0.00017989,2]
[393565929,1762803046948,-500.0,0.00017999,2]
[393565930,1762803046960,-500.0,0.00017999,2]
[393565931,1762803046970,-500.0,0.00017999,2]
[393565932,1762803046979,-300.0,0.00017999,2]
[393565933,1762803046989,-8635.58777928,0.00018,2]
[393565934,1762803063990,-379.31327772,0.00014999,2]
[393565935,1762803068107,-120.68672228,0.00014999,2]
[393565936,1762803068136,-500.0,0.00014999,2]
[393565937,1762803068163,-500.0,0.00014999,2]
[393565938,1762803068189,-92.20957077,0.00014999,2]
[393565939,1762803070247,-158.5068257,0.00014999,2]
[393565940,1762803072997,-249.28360353,0.00014999,2]
[393565941,1762803073027,-8.40509543,0.00014999,2]
[393565942,1762803075638,-207.4135978,0.00014999,2]
[393565943,1762803077733,-284.18130677,0.00014999,2]
[393565944,1762803077760,-75.81483526,0.00014999,2]
[393565945,1762803079229,-159.12743686,0.00014999,2]
[393565946,1762803081318,-158.64013925,0.00014999,2]
[393565947,1762803084102,-106.41758863,0.00014999,2]
[393565948,1762803084136,-72.83483526,0.00014999,2]
[393565949,1762803087958,-195.0,0.00014999,2]
[393565950,1762803089643,-232.16516474,0.00014999,2]
[393565951,1762803089676,-500.0,0.00014999,2]
[393565952,1762803089709,-500.0,0.00014999,2]
[393565953,1762803089744,-500.0,0.00014999,2]
[393565954,1762803089777,-500.0,0.00014999,2]
[393565955,1762803089811,-500.0,0.00014999,2]
[393565956,1762803089850,-500.0,0.00014999,2]
[393565957,1762803089882,-500.0,0.00014999,2]
[393565958,1762803089914,-500.0,0.00014999,2]
[393565959,1762803089949,-500.0,0.00014999,2]
[393565960,1762803089985,-35.67967052,0.00014999,2]
[393565961,1762803090747,-464.32032948,0.00014999,2]
[393565962,1762803090780,-160.54,0.00014999,2]
[393565963,1762803091875,-156.315875,0.00014999,2]
[393565964,1762803095560,-183.144125,0.00014999,2]
[393565965,1762803095598,-500.0,0.00014999,2]
[393565966,1762803095634,-500.0,0.00014999,2]
[393565967,1762803095670,-500.0,0.00014999,2]
[393565968,1762803095705,-500.0,0.00014999,2]
[393565969,1762803095741,-500.0,0.00014999,2]
[393565970,1762803095778,-500.0,0.00014999,2]
[393565971,1762803095812,-500.0,0.00014999,2]
[393565972,1762803095846,-500.0,0.00014999,2]
[393565973,1762803095880,-282.22647546,0.00014999,2]
[393565974,1762803095913,-500.0,0.00014999,2]
[393565975,1762803096093,-69.26879908,0.00014999,2]
[393565976,1762803096157,-191.17812775,0.00014999,2]
[393565977,1762803098857,-197.78678916,0.00014999,2]
[393565978,1762803100968,-41.76628401,0.00014999,2]
[393565979,1762803100997,-258.23371599,0.00014999,2]
[393565980,1762803105622,-217.92631296,0.00014999,2]
[393565981,1762803107333,-23.83997105,0.00014999,2]
[393565982,1762803107363,-355.23082397,0.00014999,2]
[393565983,1762803109384,-144.76917603,0.00014999,2]
[393565984,1762803109411,-79.45600285,0.00014999,2]
[393565985,1762803112239,-160.9951893,0.00014999,2]
[393565986,1762803115037,-151.0,0.00014999,2]
[393565987,1762803118296,-108.54880785,0.00014999,2]
[393565988,1762803118323,-59.86229404,0.00014999,2]
[393565989,1762803121766,-377.65895858,0.00014999,2]
[393565990,1762803130836,-62.47874738,0.00014999,2]
[393565991,1762803130871,-500.0,0.00014999,2]
[393565992,1762803130905,-500.0,0.00014999,2]
[393565993,1762803130940,-500.0,0.00014999,2]
[393565994,1762803130975,-350.0,0.00014999,2]
[393565995,1762803131010,-500.0,0.00014999,2]
[393565996,1762803131047,-200.0,0.00014999,2]
[393565997,1762803131077,-1305.70250524,0.00014999,2]
[393565998,1762803131222,-2163.64749476,0.00014999,2]
[393565999,1762803131551,-155.56479245,0.00014999,2]
[393566000,1762803131575,-92.78479484,0.00014999,2]
[393566001,1762803133271,-207.21520516,0.00014999,2]
[393566002,1762803133300,-118.36088176,0.00014999,2]
[393566003,1762803135175,-381.63911824,0.00014999,2]
[393566004,1762803135203,-17.66275028,0.00014999,2]
[393566005,1762803136722,-482.33724972,0.00014999,2]
[393566006,1762803136754,-500.0,0.00014999,2]
[393566007,1762803136790,-500.0,0.00014999,2]
[393566008,1762803136822,-500.0,0.00014999,2]
[393566009,1762803136854,-480.31598874,0.00014999,2]
[393566010,1762803136884,-500.0,0.00014999,2]
[393566011,1762803136913,-500.0,0.00014999,2]
[393566012,1762803136943,-500.0,0.00014999,2]
[393566013,1762803136973,-500.0,0.00014999,2]
[393566014,1762803137005,-500.0,0.00014999,2]
[393566015,1762803137167,-74.70352308,0.00014999,2]
[393566016,1762803142871,-425.29647692,0.00014999,2]
[393566017,1762803142903,-500.0,0.00014999,2]
[393566018,1762803173466,509.97784276,0.00014999,2]
[393566019,1762803173505,500.0,0.00014999,2]
[393566020,1762803197442,539.61841446,0.00014999,2]
[393566021,1762803197964,500.0,0.00014999,2]
[393566022,1762803198029,500.0,0.00014999,2]
[393566023,1762803198092,500.0,0.00014999,2]
[393566024,1762803198156,500.0,0.00014999,2]
[393566025,1762803198218,400.0,0.00014999,2]
[393566026,1762803198277,500.0,0.00014999,2]
[393566027,1762803198335,500.0,0.00014999,2]
[393566028,1762803198398,500.0,0.00014999,2]
[393566029,1762803198455,500.0,0.00014999,2]
[393566030,1762803198590,500.0,0.00014999,2]
[393566031,1762803198754,500.0,0.00014999,2]
[393566032,1762803204767,195.0,0.00014916,2]
[393566034,1762803429768,184.86935199,0.00014924,2]
[393566037,1762803625168,-1201.32707385,0.00016856,2]
[393566038,1762803625197,-268.312034,0.00016871,2]
[393566039,1762803625226,-250.0,0.00016902,2]
[393566040,1762803625258,-175.69479946,0.00016956,2]
[393566041,1762803625287,-1415.48218538,0.00016979,2]
[393566042,1762803625534,-3378.37781462,0.00016979,2]
[393566043,1762803625564,-500.0,0.00017056,2]
[393566044,1762803625594,-343.45,0.0001711,2]
[393566045,1762803625623,-300.0,0.0001718,2]
[393566046,1762803628002,-1200.0,0.0001718,2]
[393566047,1762803628031,-1583.44,0.00017181,2]
[393566048,1762803628063,-400.0,0.00017442,2]
[393566049,1762803628098,-300.0,0.00017442,2]
[393566050,1762803628128,-300.0,0.00017442,2]
[393566051,1762803628158,-200.0,0.00017444,2]
[393566052,1762803628188,-100.858,0.0001764,2]
[393566053,1762803628332,-1831.414,0.0001764,2]
[393566054,1762803628364,-306.0,0.00017704,2]
[393566055,1762803628396,-306.0,0.00017788,2]
[393566056,1762803628426,-175.69479945,0.000178,2]
[393566057,1762803628675,-3598.47297727,0.000178,2]
[393566058,1762803630916,-10000.01,0.000178,2]
[393566059,1762803639976,-2334.44,0.00016438,2]
[393566068,1762803834474,150.0,0.00016871,120]
[393566077,1762803966570,168.94,0.00025518,120]
[393566078,1762804031876,5359.45,8.597e-05,2]
[393566079,1762804032103,4640.56,9.032e-05,2]
[393566080,1762804032127,718.89,9.032e-05,2]
[393566081,1762804032330,5359.45,9.467e-05,2]
[393566082,1762804032554,3921.67,9.901e-05,2]
[393566083,1762804032577,1437.78,9.901e-05,2]
[393566084,1762804032793,5359.45,0.00010336,2]
[393566085,1762804032983,3202.78,0.00010771,2]
[393566086,1762804033010,2156.67,0.00010771,2]
[393566087,1762804033317,5359.45,0.00011206,2]
[393566088,1762804033528,5359.45,0.0001164,2]
[393566089,1762804033798,5359.45,0.00012075,2]
[393566090,1762804034034,5359.45,0.0001251,2]
[393566091,1762804034284,5359.45,0.00012944,2]
[393566092,1762804034584,5359.45,0.00013379,2]
[393566093,1762804034806,5359.45,0.00013814,2]
[393566094,1762804035050,5359.45,0.00014249,2]
[393566095,1762804035354,5359.45,0.00014683,2]
[393566097,1762804039093,-151.86366074,0.00015118,2]
[393566098,1762804041411,-199.11318271,0.00015118,2]
[393566099,1762804042617,-271.0,0.00015118,2]
[393566100,1762804044192,-247.52854389,0.00015118,2]
[393566102,1762804046289,-261.87453195,0.00015118,2]
[393566103,1762804049260,-159.79474072,0.00015118,2]
[393566104,1762804050857,-307.37600173,0.00015118,2]
[393566105,1762804058407,-179.5482505,0.00015118,2]
[393566106,1762804060649,-422.01915761,0.00015118,2]
[393566107,1762804062411,-248.407888,0.00015118,2]
[393566108,1762804064374,-276.37045789,0.00015118,2]
[393566109,1762804065976,-225.97,0.00015118,2]
[393566120,1762804223710,-2408.58358426,0.00015118,2]
[393566121,1762804223739,-477.89069814,0.00015453,2]
[393566122,1762804223771,-1200.0,0.00015552,2]
[393566123,1762804224176,-4640.56,0.00015553,2]
[393566124,1762804226561,-718.89,0.00015553,2]
[393566125,1762804226590,-1593.516497,0.00015905,2]
[393566126,1762804226621,-300.0,0.00015984,2]
[393566127,1762804226650,-300.0,0.00015984,2]
[393566128,1762804226680,-300.0,0.00015986,2]
[393566129,1762804226708,-1200.0,0.00015987,2]
[393566130,1762804229644,-4640.56,0.00015988,2]
[393566143,1762804232206,-718.89,0.00015988,2]
[393566144,1762804232216,-500.0,0.00016421,2]
[393566145,1762804232225,-500.0,0.00016421,2]
[393566147,1762804232235,-500.0,0.00016421,2]
[393566149,1762804232248,-500.0,0.00016421,2]
[393566151,1762804232260,-500.0,0.00016421,2]
[393566153,1762804232270,-500.0,0.00016421,2]
[393566155,1762804232279,-387.78360031,0.00016421,2]
[393566158,1762804232291,-112.21639969,0.00016421,2]
[393566160,1762804232301,-500.0,0.00016421,2]
[393566161,1762804232311,-342.35024652,0.00016421,2]
[393566163,1762804232320,-500.0,0.00016421,2]
[393566165,1762804232330,-500.0,0.00016421,2]
[393566167,1762804232341,-500.0,0.00016421,2]
[393566169,1762804232350,-500.0,0.00016421,2]
[393566171,1762804232360,-500.0,0.00016421,2]
[393566173,1762804232369,-500.0,0.00016421,2]
[393566175,1762804232378,-500.0,0.00016421,2]
[393566178,1762804232387,-500.0,0.00016421,2]
[393566181,1762804232397,-500.0,0.00016421,2]
[393566184,1762804232406,-500.0,0.00016421,2]
[393566187,1762804232416,-500.0,0.00016421,2]
[393566190,1762804232425,-500.0,0.00016421,2]
[393566193,1762804232434,-208.20556454,0.00016421,2]
[393566197,1762804232450,-291.79443546,0.00016421,2]
[393566199,1762804232463,-120.11556454,0.00016421,2]
[393566207,1762804232538,-379.88443546,0.00016421,2]
[393566209,1762804232547,-500.0,0.00016421,2]
[393566211,1762804232557,-500.0,0.00016421,2]
[393566213,1762804232566,-500.0,0.00016421,2]
[393566215,1762804232575,-500.0,0.00016421,2]
[393566217,1762804232585,-668.11046215,0.00016422,2]
[393566219,1762804232597,-1162.71070713,0.00016422,2]
[393566221,1762804232611,-1656.67488001,0.00016422,2]
[393566224,1762804232623,-1871.95395071,0.00016422,2]
[393566226,1762804232632,-404.70778425,0.00016438,2]
[393566228,1762804232643,-95.29221575,0.00016438,2]
[393566230,1762804232653,-500.0,0.00016438,2]
[393566232,1762804232665,-500.0,0.00016438,2]
[393566234,1762804232674,-500.0,0.00016438,2]
[393566236,1762804232685,-440.62288206,0.00016438,2]
[393566238,1762804232696,-59.37711794,0.00016438,2]
[393566240,1762804232708,-500.0,0.00016438,2]
[393566242,1762804232717,-500.0,0.00016438,2]
[393566243,1762804232729,-430.64019156,0.00016438,2]
[393566244,1762804232739,-40.37979097,0.00016438,2]
[393566251,1762804237901,-500.0,0.00016438,2]
[393566253,1762804237911,-71.50139456,0.00016577,2]
[393566254,1762804237922,-406.38930358,0.00016577,2]
[393566255,1762804237932,-250.0,0.0001663,2]
[393566256,1762804237942,-192.18102718,0.0001663,2]
[393566257,1762804237954,-152.92259967,0.0001663,2]
[393566258,1762804237963,-225.97,0.0001666,2]
[393566259,1762804237972,-106.65701486,0.00016788,2]
[393566260,1762804237985,-725.86298514,0.00016788,2]
[393566261,1762804237995,-720.727018,0.00016857,2]
[393566262,1762804238016,-778.58817429,0.00016857,2]
[393566263,1762804238028,-1161.46475,0.00016857,2]
[393566264,1762804238040,-2251.83866918,0.00016857,2]
[393566317,1762804239858,-446.83138853,0.00016857,2]
[393566318,1762804239868,-150.0,0.00016871,2]
[393566319,1762804239878,-26.68274382,0.00016901,2]
[393566320,1762804239966,-123.31725618,0.00016901,2]
[393566321,1762804239977,-999.0,0.00016941,3]
[393566322,1762804239986,-250.0,0.00017,2]
[393566323,1762804239996,-168.94,0.00017012,2]
[393566324,1762804240008,-1040.0,0.00017097,2]
[393566325,1762804240017,-300.0,0.000172,6]
[393566326,1762804240027,-400.0,0.000172,6]
[393566327,1762804240036,-700.0,0.000173,6]
[393566328,1762804240046,-800.0,0.000173,6]
[393566329,1762804240056,-1581.0,0.00017369,2]
[393566330,1762804240065,-1100.0,0.000174,6]
[393566331,1762804240074,-1200.0,0.000174,6]
[393566332,1762804240083,-420.0,0.00017476,2]
[393566333,1762804240093,-300.0,0.00017478,2]
[393566334,1762804240102,-1200.0,0.00017479,2]
[393566335,1762804240111,-1500.0,0.000175,6]
[393566336,1762804240120,-237.29189139,0.000175,6]
[393566337,1762804240132,-530.0,0.000175,6]
[393566338,1762804240151,-832.70810861,0.000175,6]
[393566339,1762804240162,-500.0,0.00017534,2]
[393566340,1762804240172,-1900.0,0.000176,6]
[393566341,1762804240182,-2000.0,0.000176,6]
[393566342,1762804240191,-221.96065187,0.00017654,2]
[393566343,1762804240201,-300.0,0.000177,6]
[393566344,1762804240210,-477.89069814,0.000177,2]
[393566345,1762804240220,-400.0,0.000177,6]
[393566346,1762804240229,-242.1532,0.00017711,2]
[393566348,1762804240239,-2674.6783,0.00017711,2]
[393566349,1762804240248,-579.29981692,0.00017711,2]
[393566350,1762804240261,-8255.58488308,0.00017711,2]
[393566351,1762804240271,-1581.0,0.00017745,2]
[393566352,1762804240281,-1461.63055841,0.00017773,2]
[393566354,1762804240290,-550.0,0.00017799,2]
[393566355,1762804240299,-1000.0,0.000178,2]
[393566357,1762804240309,-1000.0,0.000178,2]
[393566359,1762804240319,-151.0,0.000178,2]
[393566360,1762804240328,-14277.41226831,0.000178,2]
[393566361,1762804240338,-2500.0,0.000178,2]
[393566362,1762804240348,-152.30067399,0.000178,2]
[393566363,1762804240358,-300.0,0.000178,6]
[393566364,1762804240367,-400.0,0.000178,6]
[393566365,1762804240377,-1545.818,0.00017811,2]
[393566366,1762804240387,-14277.41226824,0.00017811,2]
[393566367,1762804240397,-197.66134,0.0001782,2]
[393566368,1762804240407,-152.30067395,0.0001782,2]
[393566370,1762804240416,-14277.41226824,0.00017822,2]
[393566372,1762804240426,-14277.41226824,0.00017833,2]
[393566374,1762804240436,-152.30067395,0.0001784,2]
[393566376,1762804240445,-14277.41226824,0.00017844,2]
[393566378,1762804240455,-14277.41226824,0.00017856,2]
[393566380,1762804240464,-152.30067395,0.0001786,2]
[393566382,1762804240474,-14277.41226824,0.00017867,2]
[393566384,1762804240485,-500.0,0.00017873,2]
[393566386,1762804240495,-14277.41226824,0.00017878,2]
[393566388,1762804240504,-152.30067395,0.0001788,2]
[393566390,1762804240515,-14277.41226824,0.00017889,2]
[393566392,1762804240524,-151.0,0.00017889,2]
[393566394,1762804240533,-151.0,0.00017889,2]
[393566396,1762804240543,-200.0,0.00017889,2]
[393566398,1762804240552,-151.0,0.00017889,2]
[393566400,1762804240562,-151.0,0.00017889,2]
[393566402,1762804240571,-151.0,0.00017889,2]
[393566404,1762804240580,-151.0,0.00017889,2]
[393566405,1762804240590,-151.0,0.00017889,2]
[393566406,1762804240599,-151.0,0.00017889,2]
[393566407,1762804240609,-151.0,0.00017889,2]
[393566408,1762804240619,-151.0,0.00017889,2]
[393566409,1762804240628,-151.0,0.00017889,2]
[393566410,1762804240638,-151.0,0.00017889,2]
[393566411,1762804240647,-151.0,0.00017889,2]
[393566412,1762804240656,-151.0,0.00017889,2]
[393566413,1762804240667,-151.0,0.00017889,2]
[393566414,1762804240681,-151.0,0.00017889,2]
[393566415,1762804240690,-151.0,0.00017889,2]
[393566416,1762804240700,-151.0,0.00017889,2]
[393566417,1762804240710,-151.0,0.00017889,2]
[393566418,1762804240719,-151.0,0.00017889,2]
[393566419,1762804240729,-151.0,0.00017889,2]
[393566420,1762804240953,-151.0,0.00017889,2]
[393566421,1762804240966,-151.0,0.00017889,2]
[393566422,1762804240976,-151.0,0.00017889,2]
[393566423,1762804240986,-151.0,0.00017889,2]
[393566424,1762804240996,-151.0,0.00017889,2]
[393566425,1762804241007,-151.0,0.00017889,2]
[393566426,1762804241016,-151.0,0.00017889,2]
[393566427,1762804241026,-151.0,0.00017889,2]
[393566428,1762804241036,-151.0,0.00017889,2]
[393566429,1762804241046,-151.0,0.00017889,2]
[393566430,1762804241056,-308.23,0.00017899,2]
[393566431,1762804241065,-903.12450102,0.000179,3]
[393566432,1762804241075,-420000.0,0.000179,2]
[393566433,1762804241084,-1000.0,0.000179,2]
[393566434,1762804241094,-5000.0,0.000179,2]
[393566435,1762804241103,-14277.41226824,0.000179,2]
[393566436,1762804241112,-300.0,0.000179,6]
[393566437,1762804241122,-400.0,0.000179,6]
[393566438,1762804241132,-152.30067395,0.000179,2]
[393566439,1762804241141,-170.95805956,0.000179,2]
[393566440,1762804241151,-339.0,0.00017973,2]
[393566441,1762804241160,-500.0,0.00017973,2]
[393566442,1762804241170,-173.25373095,0.00017973,2]
[393566443,1762804241179,-306.0,0.00017992,2]
[393566444,1762804241188,-151.0,0.00017997,2]
[393566445,1762804241198,-2950436.81216077,0.00018,2]
[393566446,1762804241641,-1.7e-07,0.00018,2]
[393566447,1762804241652,-1023.15767363,0.00018,2]
[393566452,1762804243174,-858.41742724,0.00018,2]
[393566464,1762804246070,-280.59315596,0.00016356,2]
[393566668,1762804776877,-4440.0384412,0.00016127,2]
[393566669,1762804777017,-3592.1784412,0.00016127,2]
[393566670,1762804777040,-2815.6531176,0.00016127,2]
[393566671,1762804777174,-196.91,0.00016173,2]
[393566672,1762804777203,-1307.29,0.00016407,2]
[393566673,1762804777234,-2244.832268,0.00016533,2]
[393566674,1762804777261,-254.61854156,0.00016617,2]
[393566675,1762804777289,-195.0,0.0001664,2]